bitfinex-derivatives/quotes_BTCF0:USTF0_20251103
["timestamp","ask_amount","ask_price","bid_price","bid_amount"]
[1762196676968,0.22812896,106890.0,106880.0,0.09311918]
[1762196677167,0.0965703,106890.0,106880.0,0.09311918]
[1762196677366,0.22812896,106890.0,106880.0,0.09311918]
[1762196678358,0.22812896,106890.0,106880.0,0.14330032]
[1762196678760,0.0965703,106890.0,106880.0,0.23688002]
[1762196678961,0.003,106890.0,106880.0,0.59768002]
[1762196679161,0.003,106890.0,106880.0,0.54749888]
[1762196680062,0.4573704,106890.0,106880.0,0.160187]
[1762196680366,0.4573704,106890.0,106840.0,0.15226366]
[1762196680367,0.0935967,106860.0,106840.0,0.15226366]
[1762196680563,0.0935967,106860.0,106850.0,0.03343766]
[1762196680872,1.50611536,106860.0,106850.0,0.03848758]
[1762196681064,1.50611536,106860.0,106850.0,0.01340598]
[1762196681255,1.50611536,106860.0,106840.0,0.0250816]
[1762196681256,1.63767402,106860.0,106840.0,0.0250816]
[1762196681456,0.85787732,106850.0,106830.0,0.02508738]
[1762196681670,0.94955732,106840.0,106820.0,0.05699]
[1762196681968,0.49235866,106830.0,106820.0,0.05699]
[1762196682164,0.50154288,106830.0,106820.0,0.0128]
[1762196682363,0.49954288,106830.0,106820.0,0.03462]
[1762196683070,0.49954288,106830.0,106820.0,0.05899]
[1762196683460,0.59316608,106830.0,106820.0,0.05899]
[1762196684671,0.49035866,106830.0,106820.0,0.05899]
[1762196684872,0.58398156,106830.0,106820.0,0.09242766]
[1762196685073,0.59322303,106830.0,106820.0,0.05699]
[1762196685371,0.59422303,106830.0,106820.0,0.09042766]
[1762196685774,0.58498156,106830.0,106820.0,0.09042766]
[1762196686864,0.36927928,106830.0,106820.0,0.19341936]
[1762196687068,0.49135866,106830.0,106820.0,0.1599817]
[1762196687265,0.58498166,106830.0,106820.0,0.06635]
[1762196688376,0.4544054,106850.0,106840.0,0.01288]
[1762196688584,0.4544054,106850.0,106840.0,0.10016099]
[1762196688776,0.89048724,106850.0,106840.0,0.09080099]
[1762196689080,0.98216724,106850.0,106840.0,0.09080099]
[1762196689884,0.98316724,106850.0,106840.0,0.09080099]
[1762196691778,0.98316724,106850.0,106840.0,0.10016099]
[1762196691975,0.98316724,106850.0,106840.0,0.04633099]
[1762196692177,0.98316724,106850.0,106840.0,0.0592953]
[1762196692478,0.98316724,106850.0,106840.0,0.02584431]
[1762196692684,1.21716724,106850.0,106840.0,1e-08]
[1762196692982,0.093623,106830.0,106820.0,0.04626125]
[1762196693181,1.33372158,106830.0,106820.0,0.04626125]
[1762196693482,1.33372158,106830.0,106820.0,0.08200059]
[1762196693784,1.33372158,106830.0,106820.0,0.10409059]
[1762196694668,1.33372158,106830.0,106820.0,0.11345059]
[1762196694869,0.781063,106830.0,106820.0,0.11345059]
[1762196695174,0.001,106830.0,106820.0,0.17362114]
[1762196695374,0.001,106830.0,106820.0,0.53442114]
[1762196696268,0.001,106830.0,106820.0,0.44078934]
[1762196696469,0.55465858,106830.0,106820.0,0.07998934]
[1762196696671,0.88045858,106830.0,106820.0,0.07998934]
[1762196698077,0.88045858,106830.0,106820.0,0.07062934]
[1762196698279,1.11449858,106830.0,106820.0,0.01335934]
[1762196698678,1.11449858,106830.0,106810.0,0.0001153]
[1762196698879,0.55365858,106820.0,106810.0,0.0001153]
[1762196699277,0.78769858,106820.0,106810.0,0.0001153]
[1762196700878,0.55365858,106820.0,106810.0,0.0001153]
[1762196701074,0.0936409,106810.0,106800.0,0.0128]
[1762196701275,0.0936584,106790.0,106780.0,0.11055242]
[1762196701480,1.33395698,106790.0,106780.0,0.06036032]
[1762196701676,1.33395698,106790.0,106780.0,0.06972032]
[1762196701876,0.8152584,106790.0,106780.0,0.06972032]
[1762196702084,1.04754511,106790.0,106780.0,0.06972032]
[1762196702281,0.72170511,106790.0,106780.0,0.16338752]
[1762196702584,0.36490511,106790.0,106780.0,0.11991242]
[1762196702780,0.36490511,106790.0,106780.0,0.21357962]
[1762196703083,0.36490511,106790.0,106780.0,0.11991242]
[1762196703284,0.00410511,106790.0,106780.0,0.21357912]
[1762196703586,0.00410511,106790.0,106780.0,0.90025912]
[1762196703987,0.00010511,106790.0,106780.0,0.90025932]
[1762196704179,0.00210511,106790.0,106780.0,0.90025932]
[1762196704487,0.00210511,106790.0,106780.0,0.85006722]
[1762196704686,0.00010511,106790.0,106780.0,0.85006722]
[1762196704984,0.00010511,106790.0,106780.0,0.78149126]
[1762196705185,0.00010511,106790.0,106780.0,0.47082749]
[1762196705380,0.00010511,106790.0,106780.0,0.78149126]
[1762196705580,0.00010511,106790.0,106780.0,0.87515836]
[1762196705780,0.00010511,106790.0,106780.0,1.10927836]
[1762196705986,0.3608,106810.0,106800.0,0.1509995]
[1762196706182,0.3608,106820.0,106810.0,0.04447]
[1762196706382,0.3608,106820.0,106810.0,0.07892094]
[1762196706686,0.3608,106820.0,106810.0,0.1290686]
[1762196707382,0.3648,106820.0,106810.0,0.1290686]
[1762196707582,0.55765858,106820.0,106810.0,0.1290686]
[1762196707982,0.55465858,106820.0,106810.0,0.1290686]
[1762196708188,0.3618,106820.0,106810.0,0.1290686]
[1762196708790,0.64829448,106820.0,106810.0,0.1290686]
[1762196708985,0.64829448,106820.0,106810.0,0.0976186]
[1762196709187,0.64829448,106820.0,106810.0,0.06956094]
[1762196709889,0.64829448,106820.0,106810.0,0.1197086]
[1762196710389,0.64929448,106820.0,106810.0,0.1197086]
[1762196710777,0.64729448,106820.0,106810.0,0.1197086]
[1762196710991,0.64929448,106820.0,106810.0,0.1197086]
[1762196711286,0.64929448,106820.0,106810.0,0.0752386]
[1762196711683,0.88333448,106820.0,106810.0,4e-08]
[1762196712176,0.88333448,106820.0,106790.0,0.05014766]
[1762196712383,0.91445858,106800.0,106780.0,0.06603798]
[1762196712577,0.87941858,106790.0,106780.0,0.07539798]
[1762196712986,0.87941858,106790.0,106780.0,0.09777798]
[1762196713186,0.97307708,106790.0,106780.0,0.09777798]
[1762196713588,0.97307708,106790.0,106780.0,0.06603798]
[1762196713789,0.97307708,106790.0,106780.0,0.05323798]
[1762196713991,0.97507708,106790.0,106780.0,0.00309032]
[1762196714880,0.97307708,106790.0,106780.0,0.00309032]
[1762196715082,0.97507708,106790.0,106780.0,0.00309032]
[1762196716289,1.20919708,106790.0,106780.0,0.00309032]
[1762196716593,1.21019708,106790.0,106780.0,0.00309032]
[1762196716889,1.21019708,106790.0,106780.0,2e-08]
[1762196718086,1.20719708,106790.0,106780.0,2e-08]
[1762196718294,1.21119708,106790.0,106780.0,2e-08]
[1762196718480,1.21282754,106790.0,106780.0,2e-08]
[1762196719083,1.21282754,106790.0,106760.0,0.01288]
[1762196719284,0.91445858,106770.0,106740.0,0.08891914]
[1762196719489,0.91445858,106750.0,106740.0,0.12524146]
[1762196719792,0.91445858,106750.0,106740.0,0.0521338]
[1762196720089,1.15814295,106750.0,106740.0,0.0164538]
[1762196720391,1.5,106740.0,106730.0,8.401e-05]
[1762196720697,2.187,106740.0,106730.0,0.05520401]
[1762196720887,1.8608,106740.0,106730.0,0.02288401]
[1762196721084,2.61413858,106740.0,106730.0,8.401e-05]
[1762196721890,2.61713858,106740.0,106730.0,8.401e-05]
[1762196722594,2.42428,106740.0,106730.0,8.401e-05]
[1762196722898,2.61713858,106740.0,106730.0,8.401e-05]
[1762196724191,2.3830081,106740.0,106720.0,0.00936]
[1762196724501,0.55365858,106730.0,106720.0,0.03350549]
[1762196724700,0.64736918,106730.0,106720.0,0.03779549]
[1762196725193,0.64744918,106730.0,106720.0,0.03779549]
[1762196725592,0.97372918,106730.0,106720.0,0.03779549]
[1762196726185,1.20796918,106730.0,106720.0,0.02414549]
[1762196726388,0.97376918,106730.0,106720.0,0.06059549]
[1762196726584,0.97376918,106730.0,106720.0,0.06995549]
[1762196726786,0.4545906,106730.0,106720.0,0.09291549]
[1762196726989,0.36088,106730.0,106720.0,0.09291549]
[1762196727187,0.7828706,106730.0,106720.0,0.09291549]
[1762196727590,0.97572918,106730.0,106720.0,0.09291549]
[1762196728202,0.97572918,106730.0,106720.0,0.04715549]
[1762196728399,0.97572918,106730.0,106720.0,0.08995549]
[1762196728596,0.97572918,106730.0,106720.0,0.04715549]
[1762196729197,0.97572918,106730.0,106720.0,0.08995549]
[1762196730304,0.64944918,106730.0,106720.0,0.08995549]
[1762196730605,0.97592918,106730.0,106720.0,0.08995549]
[1762196730905,0.97592918,106730.0,106720.0,0.04715549]
[1762196731090,0.97592918,106730.0,106720.0,0.06883549]
[1762196731903,0.97592918,106730.0,106720.0,0.08995549]
[1762196732497,0.97392918,106730.0,106720.0,0.03779549]
[1762196732698,0.97592918,106730.0,106720.0,0.03779549]
[1762196733106,0.97692918,106730.0,106720.0,0.03779549]
[1762196733605,0.97692918,106730.0,106720.0,0.04715549]
[1762196734106,0.97692918,106730.0,106720.0,0.08995549]
[1762196734399,0.97688918,106730.0,106720.0,0.08995549]
[1762196735505,0.97388918,106730.0,106720.0,0.08995549]
[1762196735806,0.97688918,106730.0,106720.0,0.08995549]
[1762196736592,0.97388918,106730.0,106720.0,0.08995549]
[1762196736798,0.97588918,106730.0,106720.0,0.08995549]
[1762196737500,0.88217858,106730.0,106720.0,0.18367529]
[1762196737697,0.36288,106730.0,106720.0,0.2171265]
[1762196737897,0.36288,106730.0,106720.0,0.1234067]
[1762196737898,0.64944948,106730.0,106720.0,0.1234067]
[1762196738097,0.55573858,106730.0,106720.0,0.26727406]
[1762196738504,0.64944948,106730.0,106720.0,0.17355436]
[1762196738693,0.64944948,106730.0,106720.0,0.04611549]
[1762196739099,0.64944948,106730.0,106700.0,0.01298665]
[1762196739100,0.0937285,106710.0,106700.0,0.01298665]
[1762196739299,1.33470749,106710.0,106700.0,0.01298665]
[1762196739511,1.33470749,106710.0,106700.0,0.02234665]
[1762196740308,1.33670749,106710.0,106700.0,0.02234665]
[1762196741303,1.33670749,106710.0,106700.0,0.04747327]
[1762196741505,1.33670749,106710.0,106700.0,0.03811327]
[1762196741707,1.33470749,106710.0,106700.0,0.03811327]
[1762196741908,1.33770749,106710.0,106700.0,0.03811327]
[1762196742305,1.33470749,106710.0,106700.0,0.03811327]
[1762196742505,1.33770749,106710.0,106700.0,0.03811327]
[1762196742913,1.57198749,106710.0,106690.0,0.05014766]
[1762196743212,0.0937593,106680.0,106660.0,0.12651852]
[1762196743401,0.68770939,106670.0,106660.0,0.12651852]
[1762196743715,6.939e-05,106670.0,106660.0,0.22029102]
[1762196743918,6.939e-05,106670.0,106660.0,0.83257943]
[1762196744611,6.939e-05,106670.0,106660.0,0.37800693]
[1762196744811,6.939e-05,106670.0,106660.0,0.59822003]
[1762196745008,0.00106939,106670.0,106660.0,0.74854885]
[1762196745201,0.00106939,106670.0,106660.0,0.83258003]
[1762196747006,0.64849247,106670.0,106660.0,0.12677158]
[1762196747411,0.64849247,106670.0,106660.0,0.54798488]
[1762196747412,0.45563389,106670.0,106660.0,0.54798488]
[1762196747604,0.36186939,106670.0,106660.0,0.48082905]
[1762196747805,0.64849247,106670.0,106660.0,0.45425299]
[1762196748001,0.64849247,106670.0,106660.0,0.140252]
[1762196748002,0.63934523,106670.0,106660.0,0.140252]
[1762196748211,0.63934523,106670.0,106660.0,0.083802]
[1762196748412,0.63934523,106670.0,106660.0,0.01660476]
[1762196748710,0.87470523,106670.0,106640.0,0.01261]
[1762196748918,1.00824058,106650.0,106640.0,0.03465]
[1762196749114,1.00824058,106650.0,106640.0,0.05657]
[1762196749615,0.92367212,106650.0,106640.0,0.05657]
[1762196749811,1.01752556,106650.0,106640.0,0.05657]
[1762196750306,0.9567245,106650.0,106640.0,0.03465]
[1762196751016,0.9567245,106650.0,106640.0,0.05807714]
[1762196751216,0.73088498,106650.0,106640.0,0.07999714]
[1762196751513,0.49392896,106650.0,106640.0,0.17378794]
[1762196751715,0.49392896,106650.0,106640.0,0.07999714]
[1762196752118,0.49492896,106650.0,106640.0,0.17378794]
[1762196752319,0.49492896,106650.0,106640.0,0.50198794]
[1762196752705,0.49392896,106650.0,106640.0,0.50198794]
[1762196753111,0.13312896,106650.0,106640.0,0.50198794]
[1762196753313,0.36187144,106650.0,106640.0,0.17378794]
[1762196753616,0.49392896,106650.0,106640.0,0.07999714]
[1762196753822,0.49392896,106650.0,106640.0,0.40819714]
[1762196753823,0.13312896,106650.0,106640.0,0.40819714]
[1762196754024,0.85472896,106650.0,106640.0,0.50198774]
[1762196754223,0.36187144,106650.0,106640.0,0.50198774]
[1762196754413,0.00107144,106650.0,106640.0,0.86278774]
[1762196754710,0.00107144,106650.0,106640.0,1.09722774]
[1762196754918,0.00107144,106650.0,106640.0,1.16442498]
[1762196755116,0.00107144,106650.0,106640.0,1.09722774]
[1762196755316,0.00107144,106650.0,106640.0,1.16442498]
[1762196755521,0.00107144,106650.0,106640.0,1.09722774]
[1762196755721,0.00107144,106650.0,106640.0,0.76902774]
[1762196755925,0.00107144,106650.0,106640.0,1.09730774]
[1762196756114,0.00107144,106650.0,106640.0,1.16450498]
[1762196756916,0.00107144,106650.0,106640.0,0.83622498]
[1762196757223,0.00107144,106650.0,106640.0,1.16442498]
[1762196758517,0.00107144,106650.0,106640.0,1.16434498]
[1762196759125,0.00107144,106650.0,106640.0,1.16430498]
[1762196759328,0.00107144,106650.0,106640.0,0.83622498]
[1762196759523,0.00107144,106650.0,106640.0,0.92986498]
[1762196759823,0.09485324,106650.0,106640.0,0.38163438]
[1762196760021,0.00107144,106650.0,106640.0,0.56906488]
[1762196760817,0.00107144,106650.0,106640.0,1.16430488]
[1762196761516,1.99285752,106670.0,106660.0,0.1516735]
[1762196761717,1.8608,106670.0,106660.0,0.50314064]
[1762196762227,1.5,106670.0,106660.0,0.50314064]
[1762196762415,1.8608,106670.0,106660.0,0.50310054]
[1762196762731,1.8608508,106670.0,106660.0,0.50310054]
[1762196763025,1.99290832,106670.0,106660.0,0.40932714]
[1762196763229,1.99290832,106670.0,106660.0,0.50310054]
[1762196763426,0.3638508,106670.0,106660.0,0.08132714]
[1762196763622,0.49590832,106670.0,106660.0,0.50302054]
[1762196763822,0.58967292,106670.0,106660.0,0.40924714]
[1762196764024,2.08967292,106670.0,106660.0,0.08132714]
[1762196764233,0.58967292,106670.0,106660.0,0.45954041]
[1762196764430,0.58867292,106670.0,106660.0,0.45954041]
[1762196764623,0.58867292,106670.0,106660.0,0.02342714]
[1762196764933,0.0937822,106650.0,106640.0,0.10686327]
[1762196765119,0.94749052,106650.0,106640.0,0.43482327]
[1762196765430,0.94749052,106650.0,106640.0,0.05657]
[1762196765623,0.0937916,106640.0,106630.0,0.37825327]
[1762196765824,0.71870664,106640.0,106630.0,0.37825327]
[1762196766019,0.71870664,106640.0,106630.0,0.07233327]
[1762196766228,0.0938004,106630.0,106620.0,0.10995823]
[1762196766418,0.58670872,106630.0,106620.0,0.10995823]
[1762196766621,0.49290832,106630.0,106620.0,0.10995823]
[1762196767118,0.82118862,106630.0,106620.0,0.05338823]
[1762196767324,0.82118862,106630.0,106620.0,0.00309496]
[1762196767726,0.83043681,106630.0,106620.0,0.00309496]
[1762196767923,0.83143681,106630.0,106620.0,0.01803496]
[1762196768226,0.59695681,106630.0,106620.0,0.01803496]
[1762196768426,0.49390832,106630.0,106620.0,0.15580406]
[1762196768631,0.49390832,106630.0,106620.0,0.06199496]
[1762196768832,0.49390832,106630.0,106620.0,0.20609723]
[1762196769127,0.49390832,106630.0,106620.0,0.11228823]
[1762196769326,0.58770852,106630.0,106620.0,0.14485372]
[1762196770033,0.49390832,106630.0,106620.0,0.14485372]
[1762196770531,0.49290832,106630.0,106620.0,0.23866262]
[1762196770731,0.49390832,106630.0,106620.0,0.23866262]
[1762196770928,0.13310832,106630.0,106620.0,0.23866214]
[1762196771133,0.13310832,106630.0,106620.0,0.20509713]
[1762196771427,0.58770842,106630.0,106620.0,0.11128823]
[1762196771821,0.49390832,106630.0,106620.0,0.11128823]
[1762196772028,2.08770862,106630.0,106620.0,0.11128823]
[1762196772236,1.99390832,106630.0,106620.0,0.20509733]
[1762196772425,2.32186832,106630.0,106620.0,0.20509733]
[1762196773135,1.96106832,106630.0,106620.0,0.20509733]
[1762196773325,2.32186832,106630.0,106620.0,0.20509733]
[1762196773526,0.3618508,106630.0,106620.0,0.20509733]
[1762196773726,0.0010508,106630.0,106620.0,0.7844013]
[1762196773927,0.0010508,106630.0,106620.0,1.1452013]
[1762196774127,0.3608,106650.0,106640.0,0.1516914]
[1762196774431,0.49285752,106650.0,106640.0,0.20206078]
[1762196775131,0.58663992,106650.0,106640.0,0.10826938]
[1762196776128,0.58763992,106650.0,106640.0,0.10826938]
[1762196776530,0.58663992,106650.0,106640.0,0.10826938]
[1762196776830,0.58763992,106650.0,106640.0,0.10826938]
[1762196777042,0.58763992,106650.0,106640.0,0.1315117]
[1762196777740,0.58763992,106650.0,106640.0,0.2253036]
[1762196777741,0.49385752,106650.0,106640.0,0.2253036]
[1762196778123,0.49385752,106650.0,106640.0,0.1315117]
[1762196779031,0.58764062,106650.0,106640.0,0.1315117]
[1762196780439,0.49385752,106650.0,106640.0,0.2253036]
[1762196782940,0.13305752,106650.0,106640.0,0.2253036]
[1762196783127,0.49385752,106650.0,106640.0,0.2253036]
[1762196783331,0.3618,106650.0,106640.0,0.24209339]
[1762196783532,0.001,106650.0,106640.0,0.56977339]
[1762196784044,0.001,106650.0,106640.0,0.93057339]
[1762196784232,0.001,106650.0,106640.0,0.56977339]
[1762196784428,0.3608,106660.0,106650.0,0.1393128]
[1762196784729,0.49285752,106660.0,106650.0,0.5574431]
[1762196785034,0.58663192,106660.0,106650.0,0.5574431]
[1762196785836,0.58663192,106660.0,106650.0,0.136019]
[1762196786044,0.58763192,106660.0,106650.0,0.136019]
[1762196786644,0.58763252,106660.0,106650.0,0.2298028]
[1762196786938,0.58763252,106660.0,106650.0,0.136019]
[1762196787136,0.58763252,106660.0,106640.0,0.1077265]
[1762196787137,0.0937927,106640.0,106630.0,0.06724668]
[1762196787342,0.0938015,106630.0,106620.0,0.01641496]
[1762196787541,0.58665902,106630.0,106620.0,0.05005332]
[1762196787745,0.58665902,106630.0,106620.0,0.07258332]
[1762196787931,0.58665902,106630.0,106620.0,0.09476332]
[1762196788742,0.58765902,106630.0,106620.0,0.09476332]
[1762196790743,0.58665902,106630.0,106620.0,0.09476332]
[1762196790946,0.58765902,106630.0,106620.0,0.09476332]
[1762196791252,0.91573892,106630.0,106620.0,0.18857352]
[1762196791548,0.82193752,106630.0,106620.0,0.18857352]
[1762196791950,0.91573892,106630.0,106620.0,0.09476332]
[1762196793564,0.91573892,106630.0,106620.0,0.18857352]
[1762196793952,0.49385752,106630.0,106620.0,0.18857352]
[1762196794158,0.82193752,106630.0,106620.0,0.09476332]
[1762196794361,0.58765902,106630.0,106620.0,0.06112496]
[1762196794558,0.49385752,106630.0,106620.0,0.15493526]
[1762196794964,0.58765882,106630.0,106620.0,0.06112496]
[1762196795366,0.58765882,106630.0,106620.0,0.09478095]
[1762196795564,0.58765882,106630.0,106620.0,0.18859105]
[1762196795757,0.49385752,106630.0,106620.0,0.18859105]
[1762196795958,0.49385752,106630.0,106620.0,0.15493506]
[1762196796171,0.58765882,106630.0,106620.0,0.06112496]
[1762196796361,0.58765882,106630.0,106620.0,0.15493506]
[1762196797661,0.49385752,106630.0,106620.0,0.15493506]
[1762196797962,0.3618,106630.0,106620.0,0.15493506]
[1762196798162,0.001,106630.0,106620.0,0.38941506]
[1762196798368,0.001,106630.0,106620.0,0.22224386]
[1762196798669,0.001,106630.0,106620.0,0.45672386]
[1762196799160,0.001,106630.0,106620.0,0.78468386]
[1762196800166,1.8608,106640.0,106630.0,0.0437]
[1762196800361,0.3608,106660.0,106650.0,0.1374844]
[1762196800565,0.3608,106660.0,106650.0,0.4656444]
[1762196800761,0.3608,106670.0,106660.0,0.1374762]
[1762196801065,0.4545587,106680.0,106670.0,0.0437]
[1762196801266,0.3608,106680.0,106670.0,0.07734809]
[1762196801563,0.49285752,106680.0,106670.0,0.1374674]
[1762196801758,0.58661632,106680.0,106670.0,0.1374674]
[1762196802361,0.4545588,106680.0,106670.0,0.1374674]
[1762196802658,0.49285752,106680.0,106670.0,0.1374674]
[1762196802862,0.58661632,106680.0,106670.0,0.0437]
[1762196803063,0.58961632,106680.0,106670.0,0.17108244]
[1762196803465,0.49585752,106680.0,106670.0,0.17108244]
[1762196803665,0.3638,106680.0,106670.0,0.1374676]
[1762196803966,0.003,106680.0,106670.0,0.4657076]
[1762196804468,0.003,106680.0,106670.0,0.7000676]
[1762196805370,0.003,106680.0,106670.0,0.89943487]
[1762196805559,0.003,106680.0,106670.0,1.26023487]
[1762196805764,0.58659562,106710.0,106700.0,0.01399]
[1762196805765,0.58658992,106710.0,106700.0,0.01399]
[1762196805977,0.58658992,106710.0,106700.0,0.11654523]
[1762196805978,0.8153324,106710.0,106700.0,0.11654523]
[1762196806269,0.3608,106720.0,106710.0,0.0937324]
[1762196806575,0.3638,106730.0,106720.0,0.1515336]
[1762196806777,0.3638,106730.0,106720.0,0.18505536]
[1762196806966,0.4575138,106730.0,106720.0,0.42025176]
[1762196807273,0.58957132,106730.0,106720.0,0.4453621]
[1762196807463,0.58957132,106730.0,106720.0,0.5390847]
[1762196807660,0.58957132,106730.0,106720.0,0.4453621]
[1762196807969,0.58957132,106730.0,106720.0,0.5400845]
[1762196807970,0.59057132,106730.0,106720.0,0.5400845]
[1762196808371,0.59057132,106730.0,106720.0,0.50656274]
[1762196808673,0.59057132,106730.0,106720.0,0.41284034]
[1762196809473,0.59057132,106730.0,106720.0,0.50656264]
[1762196810067,0.59057132,106730.0,106720.0,0.08392034]
[1762196810370,0.65186323,106730.0,106720.0,0.41264034]
[1762196810574,0.4585136,106730.0,106720.0,0.50636264]
[1762196811072,0.4585137,106730.0,106720.0,0.41256034]
[1762196811272,0.3648,106730.0,106720.0,0.50628284]
[1762196812368,0.004,106730.0,106720.0,0.86708284]
[1762196812576,0.004,106730.0,106720.0,0.50628284]
[1762196812779,0.0003306,106730.0,106720.0,1.10132284]
[1762196812977,0.0003306,106730.0,106720.0,0.74052284]
[1762196813374,0.0003306,106730.0,106720.0,1.10132284]
[1762196813578,0.0003306,106730.0,106720.0,1.1348446]
[1762196814370,0.3611306,106730.0,106720.0,0.50628284]
[1762196814673,0.0003306,106730.0,106720.0,0.50628284]
[1762196815473,0.0003306,106730.0,106720.0,1.10132284]
[1762196815976,0.0003306,106730.0,106720.0,0.86708284]
[1762196816281,0.0003306,106730.0,106720.0,0.8419725]
[1762196816673,0.4548445,106730.0,106720.0,0.4811326]
[1762196816981,0.3608,106740.0,106730.0,0.0937139]
[1762196817181,0.4544971,106750.0,106740.0,0.1515151]
[1762196817182,0.3608,106750.0,106740.0,0.1515151]
[1762196817481,0.4786537,106760.0,106750.0,0.1375163]
[1762196817776,0.68145783,106760.0,106750.0,0.02262]
[1762196818481,0.68145783,106760.0,106740.0,0.01399]
[1762196818482,0.1178563,106750.0,106740.0,0.05781]
[1762196818682,0.1178563,106750.0,106720.0,0.05881]
[1762196818683,0.1178739,106730.0,106720.0,0.05881]
[1762196818873,0.1178739,106730.0,106720.0,0.1515326]
[1762196818874,0.67202333,106730.0,106720.0,0.1515326]
[1762196819373,0.67202333,106730.0,106720.0,0.05781]
[1762196819773,0.4786739,106730.0,106720.0,0.05781]
[1762196820269,0.3608,106740.0,106730.0,0.1163339]
[1762196820482,0.4786676,106740.0,106730.0,0.1375339]
[1762196820676,0.4786676,106740.0,106730.0,0.04382]
[1762196821383,0.38496,106740.0,106730.0,0.1375339]
[1762196821582,0.4786651,106740.0,106730.0,0.1375339]
[1762196821785,0.4786651,106740.0,106730.0,0.1395339]
[1762196822377,0.4786651,106740.0,106730.0,0.04582]
[1762196822582,0.67201453,106740.0,106730.0,0.02462]
[1762196822776,0.67201453,106740.0,106730.0,0.002]
[1762196823475,0.1178914,106710.0,106700.0,0.05781]
[1762196823672,0.67204083,106710.0,106700.0,0.05781]
[1762196823871,0.01208,106710.0,106700.0,0.1515502]
[1762196824074,0.3608,106710.0,106700.0,0.1515502]
[1762196824276,0.38496,106730.0,106720.0,0.1515326]
[1762196824479,0.807513,106740.0,106730.0,0.1375339]
[1762196824675,0.7138,106740.0,106730.0,0.1375339]
[1762196825186,0.8075053,106740.0,106730.0,0.1375339]
[1762196825584,0.8075053,106740.0,106730.0,0.04382]
[1762196825780,0.8075053,106740.0,106730.0,0.04482]
[1762196825977,1.00085473,106740.0,106730.0,0.04482]
[1762196826177,1.01216473,106740.0,106730.0,0.001]
[1762196826377,1.24640473,106740.0,106730.0,0.001]
[1762196826681,1.01216473,106740.0,106730.0,0.001]
[1762196827287,0.1388918,106720.0,106710.0,0.02511034]
[1762196827581,0.1389005,106710.0,106700.0,0.04773034]
[1762196827783,0.1389093,106700.0,106690.0,0.06893034]
[1762196827980,1.03409873,106700.0,106690.0,0.06893034]
[1762196828177,1.03409873,106700.0,106690.0,0.02511034]
[1762196828377,0.1389182,106690.0,106680.0,0.05614176]
[1762196828686,0.69306763,106690.0,106680.0,0.02510766]
[1762196829088,0.68806763,106690.0,106680.0,0.02510766]
[1762196829280,0.68806763,106690.0,106680.0,0.05862942]
[1762196829680,0.4947182,106690.0,106680.0,0.05862942]
[1762196829884,0.4947182,106690.0,106680.0,0.19620602]
[1762196830185,0.3608,106690.0,106680.0,0.18508836]
[1762196830389,0.3608,106690.0,106680.0,0.23537145]
[1762196830579,0.4545478,106690.0,106680.0,0.10809309]
[1762196830882,0.40597,106690.0,106680.0,0.20184969]
[1762196831084,0.40697,106690.0,106680.0,0.20684969]
[1762196832583,0.5007179,106690.0,106680.0,0.20684969]
[1762196833083,0.04617,106690.0,106680.0,0.20684969]
[1762196833284,0.001,106690.0,106680.0,0.71071603]
[1762196833590,0.001,106690.0,106680.0,0.58467635]
[1762196833885,0.001,106690.0,106680.0,0.60150452]
[1762196834085,0.001,106690.0,106680.0,0.58449585]
[1762196834483,0.001,106690.0,106680.0,0.5173666]
[1762196834789,0.001,106690.0,106680.0,0.7516866]
[1762196835179,0.001,106690.0,106680.0,0.81883576]
[1762196835380,0.001,106690.0,106680.0,0.7516866]
[1762196835979,0.001,106690.0,106680.0,0.83582452]
[1762196836380,0.001,106690.0,106680.0,1.02917395]
[1762196836579,0.001,106690.0,106680.0,0.94503603]
[1762196837787,0.8310419,106720.0,106710.0,0.1149006]
[1762196837980,0.4985918,106720.0,106710.0,0.18836971]
[1762196838377,0.40487,106720.0,106710.0,0.18836971]
[1762196838585,0.4985918,106720.0,106710.0,0.18836971]
[1762196838777,0.4985918,106720.0,106710.0,0.20515941]
[1762196839095,0.4985918,106720.0,106710.0,0.20715941]
[1762196839281,0.5022818,106720.0,106710.0,0.06915881]
[1762196839483,0.5022818,106720.0,106710.0,0.38092854]
[1762196839682,0.92991123,106720.0,106710.0,0.05236854]
[1762196839885,0.69563123,106720.0,106710.0,0.03558121]
[1762196840390,1.02415123,106720.0,106710.0,0.06076892]
[1762196840796,1.02415123,106720.0,106710.0,0.06076895]
[1762196840980,1.02415123,106720.0,106710.0,0.05876895]
[1762196841183,0.8308018,106720.0,106710.0,0.05876895]
[1762196841389,0.4985918,106720.0,106710.0,0.07785121]
[1762196841689,0.4985918,106720.0,106710.0,0.12821975]
[1762196841985,0.4985918,106720.0,106710.0,0.22195025]
[1762196842190,0.4985918,106720.0,106710.0,0.18836904]
[1762196842494,0.40487,106720.0,106710.0,0.18836904]
[1762196842692,0.4985918,106720.0,106710.0,0.18836904]
[1762196843079,0.4995918,106720.0,106710.0,0.18836904]
[1762196843593,0.4995918,106720.0,106710.0,0.09463854]
[1762196843885,0.4995918,106720.0,106710.0,0.18836914]
[1762196844681,0.40587,106720.0,106710.0,0.18836914]
[1762196844883,0.4995918,106720.0,106710.0,0.18836914]
[1762196846293,0.4995918,106720.0,106710.0,0.09463854]
[1762196847888,1.02487123,106720.0,106710.0,0.05036854]
[1762196848298,1.02487123,106720.0,106710.0,0.03363013]
[1762196850696,0.4995918,106720.0,106710.0,0.22223807]
[1762196850891,0.4995918,106720.0,106710.0,0.18860794]
[1762196851094,0.04507,106720.0,106710.0,0.18860794]
[1762196851295,0.04507,106720.0,106710.0,0.20539821]
[1762196851697,0.04507,106720.0,106710.0,0.53379821]
[1762196852697,0.138791,106720.0,106710.0,0.53379821]
[1762196852888,0.04507,106720.0,106710.0,0.53379821]
[1762196853400,0.001,106720.0,106710.0,0.53379821]
[1762196854388,0.001,106720.0,106710.0,0.89459821]
[1762196855198,0.001,106720.0,106710.0,0.91157732]
[1762196855393,0.139531,106720.0,106710.0,0.8274394]
[1762196855901,0.116291,106720.0,106710.0,0.8274394]
[1762196856304,0.116291,106720.0,106710.0,0.89470451]
[1762196856993,0.094721,106720.0,106710.0,0.89470451]
[1762196857699,0.001,106720.0,106710.0,0.90731451]
[1762196858093,0.001,106720.0,106710.0,1.10066394]
[1762196858694,0.001,106720.0,106710.0,1.03339883]
[1762196859100,0.4545033,106740.0,106730.0,0.1508315]
[1762196859397,0.4545027,106740.0,106730.0,0.54608586]
[1762196859598,0.4545027,106740.0,106730.0,0.4788315]
[1762196859800,0.4993087,106750.0,106740.0,0.1382127]
[1762196859998,0.4993087,106750.0,106740.0,0.18865202]
[1762196860300,0.1385087,106750.0,106740.0,0.18865202]
[1762196860800,0.0936987,106750.0,106740.0,0.56626706]
[1762196860996,0.0936987,106750.0,106740.0,0.20546706]